fUSD/lending_fUSD_20260508
["ID","MTS","AMOUNT","RATE_DAILY","PERIOD"]
[421833512,1778194242000,-3000.0,0.00016612,2]
[421833515,1778194242000,-500.0,0.00016986,2]
[421833517,1778194242000,-500.0,0.00016986,2]
[421833513,1778194242000,-189.20905721,0.0001696,2]
[421833514,1778194242000,-273.32,0.00016969,2]
[421833522,1778194242000,-2000.0,0.00017106,2]
[421833519,1778194242000,-706.67601849,0.00016986,2]
[421833521,1778194242000,-501.85037904,0.00016986,2]
[421833523,1778194242000,-736.0,0.00017145,2]
[421833520,1778194242000,-710.46501094,0.00016986,2]
[421833529,1778194242000,-737.97900188,0.00017708,2]
[421833502,1778194242000,-544.55,0.00016447,2]
[421833527,1778194242000,-3000.17,0.00017537,2]
[421833511,1778194242000,-3292.0,0.00016557,2]
[421833497,1778194242000,-500.0,0.00016447,2]
[421833485,1778194242000,-539.16,0.00016447,2]
[421833499,1778194242000,-398.85,0.00016447,2]
[421833528,1778194242000,-273.32,0.00017677,2]
[421833472,1778194242000,-500.43839716,0.00016438,2]
[421833471,1778194242000,-500.0,0.00016438,2]
[421833470,1778194242000,-430.1,0.00016438,2]
[421833473,1778194242000,-500.23828883,0.00016438,2]
[421833475,1778194242000,-165.49031908,0.00016438,2]
[421833474,1778194242000,-165.67847138,0.00016438,2]
[421833479,1778194242000,-500.0,0.00016438,2]
[421833478,1778194242000,-309.09113002,0.00016438,2]
[421833476,1778194242000,-500.0,0.00016438,2]
[421833477,1778194242000,-500.0,0.00016438,2]
[421833481,1778194242000,-500.0,0.00016438,2]
[421833498,1778194242000,-500.0,0.00016447,2]
[421833482,1778194242000,-500.0,0.00016438,2]
[421833480,1778194242000,-500.0,0.00016438,2]
[421833484,1778194242000,-503.11086584,0.00016438,2]
[421833486,1778194242000,-539.16,0.00016447,2]
[421833491,1778194242000,-522.28416822,0.00016447,2]
[421833487,1778194242000,-539.16,0.00016447,2]
[421833488,1778194242000,-539.16,0.00016447,2]
[421833494,1778194242000,-839.28,0.00016447,2]
[421833489,1778194242000,-539.2916092,0.00016447,2]
[421833493,1778194242000,-839.28,0.00016447,2]
[421833492,1778194242000,-839.28,0.00016447,2]
[421833490,1778194242000,-500.0,0.00016447,2]
[421833495,1778194242000,-839.28,0.00016447,2]
[421833483,1778194242000,-500.0,0.00016438,2]
[421833524,1778194242000,-3500.0,0.0001716,2]
[421833584,1778194242000,-615.37,0.00021273,2]
[421833525,1778194242000,-497.45,0.000173,2]
[421833563,1778194242000,-500.0,0.00019999,2]
[421833567,1778194242000,-623.52,0.00019999,2]
[421833566,1778194242000,-623.52,0.00019999,2]
[421833565,1778194242000,-623.52,0.00019999,2]
[421833564,1778194242000,-576.46146968,0.00019999,2]
[421833562,1778194242000,-500.0,0.00019999,2]
[421833568,1778194242000,-623.52,0.00019999,2]
[421833571,1778194242000,-240.0,0.0002,2]
[421833572,1778194242000,-425.0,0.0002,2]
[421833582,1778194242000,-425.0,0.00021,2]
[421833574,1778194242000,-266.0,0.0002,2]
[421833573,1778194242000,-849.44,0.0002,2]
[421833560,1778194242000,-625.48672371,0.00019945,2]
[421833575,1778194242000,-6453.0,0.00020034,2]
[421833580,1778194242000,-625.48672371,0.00020958,2]
[421833577,1778194242000,-386.0,0.00020115,2]
[421833576,1778194242000,-625.48672371,0.0002004,2]
[421833579,1778194242000,-625.48672371,0.00020512,2]
[421833587,1778194242000,-243.29,0.00021781,2]
[421833586,1778194242000,-1625.89,0.00021273,2]
[421833585,1778194242000,-3814.75,0.00021273,2]
[421833589,1778194242000,-236.61689116,0.00021816,14]
[421833583,1778194242000,-266.0,0.00021,2]
[421833590,1778194242000,-283.94,0.00021821,2]
[421833588,1778194242000,-2258.0,0.0002179,2]
[421833530,1778194242000,-1600.0,0.00017766,2]
[421833578,1778194242000,-430.1,0.00020381,2]
[421833558,1778194242000,-1613.0,0.00019859,2]
[421833581,1778194242000,-240.0,0.00021,2]
[421833559,1778194242000,-625.48672371,0.00019904,2]
[421833561,1778194242000,-500.0,0.00019999,2]
[421833542,1778194242000,-1171.4192263,0.00018529,2]
[421833531,1778194242000,-390.05399549,0.00017863,2]
[421833532,1778194242000,-1558.65576596,0.00017863,2]
[421833543,1778194242000,-9999.99,0.00018533,2]
[421833533,1778194242000,-500.0,0.00018006,2]
[421833537,1778194242000,-4609.0,0.00018213,2]
[421833535,1778194242000,-2000.0,0.00018082,2]
[421833544,1778194242000,-12185.48,0.00018533,2]
[421833534,1778194242000,-150.24,0.00018057,2]
[421833536,1778194242000,-1152.0,0.00018099,2]
[421833541,1778194242000,-430.1,0.0001841,2]
[421833539,1778194242000,-273.32,0.00018384,2]
[421833526,1778194242000,-1500.0,0.00017534,2]
[421833570,1778194242000,-623.71870549,0.00019999,2]
[421833552,1778194242000,-500.0,0.00019178,2]
[421833554,1778194242000,-500.0,0.00019178,2]
[421833553,1778194242000,-500.0,0.00019178,2]
[421833546,1778194242000,-1252.0,0.00018576,2]
[421833551,1778194242000,-500.0,0.00019178,2]
[421833555,1778194242000,-250.0,0.00019178,2]
[421833547,1778194242000,-500.0,0.0001863,2]
[421833549,1778194242000,-3000.19,0.00018907,2]
[421833556,1778194242000,-1600.0,0.00019382,2]
[421833545,1778194242000,-19999.99,0.00018533,2]
[421833548,1778194242000,-2000.0,0.00018661,2]
[421833550,1778194242000,-273.32,0.00019091,2]
[421833634,1778194243000,-315.1558498,0.00025753,2]
[421833632,1778194243000,-266.0,0.00025,2]
[421833627,1778194243000,-150.0,0.00024658,2]
[421833626,1778194243000,-385.44463277,0.000244,2]
[421833629,1778194243000,-497.45,0.00025,7]
[421833621,1778194243000,-425.0,0.00024,2]
[421833622,1778194243000,-266.0,0.00024,2]
[421833625,1778194243000,-430.1,0.00024324,2]
[421833624,1778194243000,-385.44463277,0.000242,2]
[421833623,1778194243000,-175.68,0.00024174,2]
[421833643,1778194243000,-19822.3,0.00027397,10]
[421833631,1778194243000,-442.4408636,0.00025,2]
[421833628,1778194243000,-1000.0,0.00024658,2]
[421833642,1778194243000,-1500.0,0.00027397,2]
[421833633,1778194243000,-250.0,0.00025205,2]
[421833638,1778194243000,-175.68,0.00025786,2]
[421833637,1778194243000,-1625.89,0.00025786,2]
[421833641,1778194243000,-504.0,0.00027137,2]
[421833636,1778194243000,-3814.75,0.00025786,2]
[421833639,1778194243000,-430.1,0.00026296,2]
[421833644,1778194243000,-23290.18,0.00027397,10]
[421833645,1778194243000,-19408.48,0.00027397,10]
[421833646,1778194243000,-500.0,0.00027397,5]
[421833653,1778194243000,-500.0,0.000278,7]
[421833648,1778194243000,-1754.91,0.000274,14]
[421833651,1778194243000,-207.9261601,0.000274,10]
[421833650,1778194243000,-9146.89,0.000274,7]
[421833635,1778194243000,-615.37,0.00025786,2]
[421833619,1778194243000,-385.44463277,0.00024,2]
[421833592,1778194243000,-1010.62,0.00021918,5]
[421833620,1778194243000,-240.0,0.00024,2]
[421833593,1778194243000,-162.0,0.00022,2]
[421833594,1778194243000,-240.0,0.00022,2]
[421833591,1778194243000,-5000.0,0.00021918,2]
[421833598,1778194243000,-430.1,0.00022353,2]
[421833597,1778194243000,-4635.0,0.00022038,2]
[421833595,1778194243000,-425.0,0.00022,2]
[421833599,1778194243000,-500.0,0.00022941,2]
[421833602,1778194243000,-500.0,0.00022941,2]
[421833600,1778194243000,-500.0,0.00022941,2]
[421833596,1778194243000,-266.0,0.00022,2]
[421833601,1778194243000,-500.0,0.00022941,2]
[421833606,1778194243000,-662.5687855,0.00022942,2]
[421833604,1778194243000,-6682.4200264,0.00022942,2]
[421833603,1778194243000,-370.3553347,0.00022941,2]
[421833605,1778194243000,-639601.0994332,0.00022942,2]
[421833607,1778194243000,-6600.9480672,0.00022942,2]
[421833608,1778194243000,-2453.2936746,0.00022942,2]
[421833609,1778194243000,-240.0,0.00023,2]
[421833615,1778194243000,-160.0,0.00023489,2]
[421833618,1778194243000,-2627.0,0.00023909,2]
[421833617,1778194243000,-385.44463277,0.000237,2]
[421833616,1778194243000,-385.44463277,0.000235,2]
[421833611,1778194243000,-266.0,0.00023,2]
[421833612,1778194243000,-1171.4192263,0.0002326,2]
[421833613,1778194243000,-207.9261601,0.00023489,2]
[421833614,1778194243000,-214.63993676,0.00023489,2]
[421833610,1778194243000,-425.0,0.00023,2]
[421833630,1778194243000,-244.0,0.00025,2]
[421833647,1778194243000,-235.65,0.000274,7]
[421833652,1778194243000,-214.63993676,0.000274,7]
[421833665,1778194243000,-512.70147277,0.00028305,2]
[421833689,1778194243000,-176.26,0.0002881,30]
[421833688,1778194243000,-176.59,0.00028782,7]
[421833690,1778194243000,-176.59,0.00028812,30]
[421833691,1778194243000,-150.0,0.00028834,2]
[421833692,1778194243000,-176.26,0.0002884,2]
[421833693,1778194243000,-176.59,0.00028842,2]
[421833695,1778194243000,-176.59,0.00028872,7]
[421833694,1778194243000,-176.26,0.00028871,7]
[421833709,1778194243000,-176.59,0.00029112,2]
[421833703,1778194243000,-176.59,0.00028992,30]
[421833699,1778194243000,-176.59,0.00028932,2]
[421833702,1778194243000,-176.26,0.00028991,30]
[421833698,1778194243000,-176.26,0.00028931,2]
[421833700,1778194243000,-176.26,0.00028961,7]
[421833704,1778194243000,-176.26,0.00029021,2]
[421833705,1778194243000,-176.59,0.00029022,2]
[421833701,1778194243000,-176.59,0.00028962,7]
[421833706,1778194243000,-176.26,0.00029051,7]
[421833707,1778194243000,-176.59,0.00029052,7]
[421833708,1778194243000,-176.59,0.00029082,30]
[421833711,1778194243000,-176.59,0.00029142,7]
[421833713,1778194243000,-176.59,0.00029202,2]
[421833710,1778194243000,-504.0,0.00029132,4]
[421833712,1778194243000,-176.59,0.00029172,30]
[421833714,1778194243000,-176.78,0.00029232,7]
[421833649,1778194243000,-270.76,0.000274,7]
[421833715,1778194243000,-497.45,0.000293,7]
[421833687,1778194243000,-176.26,0.0002878,7]
[421833685,1778194243000,-176.26,0.0002875,2]
[421833716,1778194243000,-2342.51452126,0.00029452,30]
[421833696,1778194243000,-176.26,0.00028901,30]
[421833697,1778194243000,-176.59,0.00028902,30]
[421833659,1778194243000,-393.0,0.00028164,2]
[421833655,1778194243000,-1171.4192263,0.00027992,2]
[421833662,1778194243000,-1149.29550399,0.00028294,2]
[421833654,1778194243000,-281.2305762,0.00027992,2]
[421833660,1778194243000,-207.9261601,0.000282,10]
[421833667,1778194243000,-850.0,0.00028424,2]
[421833656,1778194243000,-207.9261601,0.00028,7]
[421833658,1778194243000,-504.0,0.00028134,3]
[421833657,1778194243000,-207.9261601,0.00028,10]
[421833664,1778194243000,-5884.76430474,0.00028294,2]
[421833661,1778194243000,-430.1,0.00028267,2]
[421833668,1778194243000,-850.0,0.00028424,2]
[421833666,1778194243000,-850.0,0.00028424,2]
[421833673,1778194243000,-850.0,0.00028424,2]
[421833674,1778194243000,-850.0,0.00028424,2]
[421833684,1778194243000,-176.59,0.00028722,30]
[421833683,1778194243000,-176.26,0.0002872,30]
[421833680,1778194243000,-176.26,0.0002869,7]
[421833682,1778194243000,-176.59,0.00028692,7]
[421833669,1778194243000,-850.0,0.00028424,2]
[421833686,1778194243000,-176.59,0.00028752,2]
[421833678,1778194243000,-176.59,0.00028663,2]
[421833670,1778194243000,-850.0,0.00028424,2]
[421833671,1778194243000,-850.0,0.00028424,2]
[421833672,1778194243000,-850.0,0.00028424,2]
[421833676,1778194243000,-176.26,0.0002866,2]
[421833675,1778194243000,-450.0,0.00028424,2]
[421833756,1778194244000,-250.0,0.00030898,2]
[421833755,1778194244000,-250.0,0.00030898,2]
[421833754,1778194244000,-928.0,0.00030864,2]
[421833752,1778194244000,-1268.0,0.00030864,2]
[421833751,1778194244000,-1363.169,0.00030864,2]
[421833753,1778194244000,-419.064,0.00030864,2]
[421833749,1778194244000,-942.307,0.00030864,2]
[421833748,1778194244000,-637.515,0.00030864,2]
[421833758,1778194244000,-250.0,0.00030898,2]
[421833750,1778194244000,-3537.0,0.00030864,2]
[421833747,1778194244000,-150.0,0.00030834,2]
[421833765,1778194244000,-159.2989,0.00030996,120]
[421833760,1778194244000,-250.0,0.00030898,2]
[421833759,1778194244000,-250.0,0.00030898,2]
[421833763,1778194244000,-279.0,0.00030898,2]
[421833761,1778194244000,-250.0,0.00030898,2]
[421833762,1778194244000,-250.0,0.00030898,2]
[421833764,1778194244000,-900.0,0.000309,11]
[421833767,1778194244000,-202.74287606,0.00031026,2]
[421833766,1778194244000,-150.0,0.00031011,2]
[421833768,1778194244000,-200.0,0.00031096,2]
[421833770,1778194244000,-153.0,0.00031132,30]
[421833773,1778194244000,-425.0,0.00031132,30]
[421833744,1778194244000,-501.32,0.00030237,7]
[421833757,1778194244000,-250.0,0.00030898,2]
[421833746,1778194244000,-666.0,0.0003037,10]
[421833733,1778194244000,-150.0,0.00030137,2]
[421833741,1778194244000,-168.26370078,0.00030137,2]
[421833772,1778194244000,-240.0,0.00031132,30]
[421833721,1778194244000,-180.0,0.00029538,2]
[421833720,1778194244000,-150.0,0.00029538,2]
[421833717,1778194244000,-9146.89,0.000295,7]
[421833718,1778194244000,-150.0,0.00029534,2]
[421833719,1778194244000,-270.0,0.00029538,2]
[421833722,1778194244000,-235.65,0.000296,7]
[421833726,1778194244000,-225.93,0.00030136,8]
[421833723,1778194244000,-150.0,0.00029834,2]
[421833725,1778194244000,-225.93,0.00030136,8]
[421833734,1778194244000,-150.0,0.00030137,2]
[421833727,1778194244000,-1000.0,0.00030137,120]
[421833731,1778194244000,-4000.0,0.00030137,120]
[421833729,1778194244000,-192.26329149,0.00030137,40]
[421833730,1778194244000,-170.6952,0.00030137,2]
[421833732,1778194244000,-150.0,0.00030137,2]
[421833728,1778194244000,-200.0,0.00030137,2]
[421833735,1778194244000,-150.0,0.00030137,2]
[421833738,1778194244000,-150.0,0.00030137,2]
[421833737,1778194244000,-150.0,0.00030137,2]
[421833740,1778194244000,-150.0,0.00030137,2]
[421833739,1778194244000,-150.0,0.00030137,2]
[421833742,1778194244000,-1754.91,0.000302,14]
[421833736,1778194244000,-150.0,0.00030137,2]
[421833743,1778194244000,-270.76,0.000302,7]
[421833745,1778194244000,-430.1,0.00030239,2]
[421833774,1778194244000,-157.0,0.00031132,30]
[421833724,1778194244000,-504.0,0.00030129,5]
[421833771,1778194244000,-155.0,0.00031132,30]
[421833804,1778194244000,-250.0,0.00031968,2]
[421833807,1778194244000,-219.0,0.00031968,2]
[421833811,1778194244000,-2759.79186199,0.00032,7]
[421833808,1778194244000,-1061.04,0.00032,30]
[421833810,1778194244000,-275.53355871,0.00032,120]
[421833806,1778194244000,-250.0,0.00031968,2]
[421833809,1778194244000,-160.29118835,0.00032,120]
[421833805,1778194244000,-250.0,0.00031968,2]
[421833813,1778194244000,-2851.21217869,0.00032,7]
[421833812,1778194244000,-265.712551,0.00032,7]
[421833818,1778194244000,-504.0,0.00032124,7]
[421833820,1778194244000,-155.0,0.00032132,30]
[421833814,1778194244000,-3270.17340832,0.00032,7]
[421833819,1778194244000,-161.43715,0.00032132,30]
[421833821,1778194244000,-240.0,0.00032132,30]
[421833816,1778194244000,-233.58,0.00032055,2]
[421833822,1778194244000,-425.0,0.00032132,30]
[421833828,1778194244000,-153.0,0.00032143,30]
[421833815,1778194244000,-336.0,0.00032014,10]
[421833817,1778194244000,-1061.04,0.00032067,30]
[421833826,1778194244000,-156.0,0.00032143,30]
[421833827,1778194244000,-155.0,0.00032143,30]
[421833823,1778194244000,-157.0,0.00032132,30]
[421833824,1778194244000,-1061.04,0.00032133,30]
[421833825,1778194244000,-154.0,0.00032143,30]
[421833801,1778194244000,-250.0,0.00031968,2]
[421833800,1778194244000,-250.0,0.00031968,2]
[421833769,1778194244000,-504.0,0.00031127,6]
[421833802,1778194244000,-250.0,0.00031968,2]
[421833803,1778194244000,-250.0,0.00031968,2]
[421833777,1778194244000,-155.0,0.00031143,30]
[421833775,1778194244000,-154.0,0.00031143,30]
[421833778,1778194244000,-153.0,0.00031143,30]
[421833776,1778194244000,-156.0,0.00031143,30]
[421833786,1778194244000,-250.0,0.00031346,2]
[421833785,1778194244000,-250.0,0.00031346,2]
[421833779,1778194244000,-266.0,0.00031143,30]
[421833782,1778194244000,-250.0,0.00031346,2]
[421833781,1778194244000,-250.0,0.00031346,2]
[421833780,1778194244000,-666.0,0.00031192,10]
[421833787,1778194244000,-250.0,0.00031346,2]
[421833784,1778194244000,-250.0,0.00031346,2]
[421833789,1778194244000,-1000.0,0.000315,7]
[421833783,1778194244000,-250.0,0.00031346,2]
[421833798,1778194244000,-250.0,0.00031968,2]
[421833796,1778194244000,-150.0,0.00031834,2]
[421833795,1778194244000,-280.38870062,0.000316,2]
[421833794,1778194244000,-280.38870062,0.000316,2]
[421833797,1778194244000,-154.1783,0.00031856,120]
[421833799,1778194244000,-250.0,0.00031968,2]
[421833790,1778194244000,-15285.84342991,0.000315,2]
[421833788,1778194244000,-275.0,0.00031346,2]
[421833792,1778194244000,-500.0,0.00031589,2]
[421833791,1778194244000,-34931.15657009,0.000315,2]
[421833793,1778194244000,-280.38870062,0.000316,2]
[421833863,1778194245000,-196.008536,0.00032884,7]
[421833866,1778194245000,-151.0,0.00032884,7]
[421833867,1778194245000,-151.0,0.00032884,7]
[421833864,1778194245000,-151.0,0.00032884,7]
[421833865,1778194245000,-277.955564,0.00032884,7]
[421833859,1778194245000,-151.0,0.00032884,7]
[421833856,1778194245000,-6600.9480672,0.00032884,2]
[421833860,1778194245000,-151.0,0.00032884,7]
[421833861,1778194245000,-151.0,0.00032884,7]
[421833868,1778194245000,-151.0,0.00032884,7]
[421833857,1778194245000,-151.0,0.00032884,7]
[421833872,1778194245000,-159.738525,0.00032884,7]
[421833880,1778194245000,-479.218682,0.00032884,7]
[421833869,1778194245000,-151.0,0.00032884,7]
[421833870,1778194245000,-159.738525,0.00032884,7]
[421833874,1778194245000,-479.218682,0.00032884,7]
[421833873,1778194245000,-159.738525,0.00032884,7]
[421833875,1778194245000,-464.191244,0.00032884,7]
[421833877,1778194245000,-464.191244,0.00032884,7]
[421833887,1778194245000,-275.53355871,0.00033,120]
[421833888,1778194245000,-288.0,0.00033062,2]
[421833879,1778194245000,-464.191244,0.00032884,7]
[421833878,1778194245000,-479.218682,0.00032884,7]
[421833876,1778194245000,-479.218682,0.00032884,7]
[421833862,1778194245000,-151.0,0.00032884,7]
[421833871,1778194245000,-159.738525,0.00032884,7]
[421833858,1778194245000,-151.0,0.00032884,7]
[421833838,1778194245000,-1754.91,0.000328,14]
[421833855,1778194245000,-599055.6680289,0.00032884,2]
[421833886,1778194245000,-160.29118835,0.00033,120]
[421833834,1778194245000,-159.0,0.00032548,2]
[421833835,1778194245000,-150.0,0.00032562,2]
[421833830,1778194245000,-1061.04,0.000322,30]
[421833829,1778194245000,-266.0,0.00032143,30]
[421833832,1778194245000,-2576.0,0.0003224,2]
[421833833,1778194245000,-5529.0,0.000324,3]
[421833831,1778194245000,-430.1,0.0003221,5]
[421833843,1778194245000,-1721.66452999,0.00032884,2]
[421833844,1778194245000,-8617.57903324,0.00032884,2]
[421833846,1778194245000,-20197.1028935,0.00032884,2]
[421833845,1778194245000,-11730.74947756,0.00032884,2]
[421833836,1778194245000,-151.8774,0.00032715,120]
[421833837,1778194245000,-1171.4192263,0.00032724,2]
[421833839,1778194245000,-270.76,0.000328,7]
[421833841,1778194245000,-4511.41508391,0.00032884,2]
[421833840,1778194245000,-150.0,0.00032834,2]
[421833842,1778194245000,-449.3404125,0.00032884,2]
[421833847,1778194245000,-16173.73,0.00027397,10]
[421833849,1778194245000,-176.26,0.00029082,30]
[421833851,1778194245000,-176.26,0.00029142,7]
[421833848,1778194245000,-450.69784284,0.00028294,2]
[421833852,1778194245000,-176.26,0.00029172,30]
[421833853,1778194245000,-176.26,0.00029202,2]
[421833850,1778194245000,-176.26,0.00029112,2]
[421833854,1778194245000,-176.35,0.00029232,7]
[421833883,1778194245000,-151.0,0.00032884,7]
[421833881,1778194245000,-464.191244,0.00032884,7]
[421833882,1778194245000,-151.0,0.00032884,7]
[421833916,1778194245000,-182.0,0.00033634,2]
[421833917,1778194245000,-181.6934164,0.00033827,60]
[421833919,1778194245000,-150.0,0.00033834,2]
[421833920,1778194245000,-250.0,0.00033848,7]
[421833922,1778194245000,-3535.0,0.00033864,2]
[421833924,1778194245000,-417.0,0.00033864,2]
[421833923,1778194245000,-1266.0,0.00033864,2]
[421833925,1778194245000,-275.53355871,0.000339,120]
[421833921,1778194245000,-925.0,0.00033864,2]
[421833927,1778194245000,-235.65,0.00034,30]
[421833937,1778194245000,-430.1,0.00034182,7]
[421833926,1778194245000,-9146.89,0.000339,7]
[421833928,1778194245000,-207.9261601,0.00034,7]
[421833929,1778194245000,-214.63993676,0.00034,7]
[421833932,1778194245000,-240.0,0.00034132,30]
[421833931,1778194245000,-155.0,0.00034132,30]
[421833933,1778194245000,-425.0,0.00034132,30]
[421833936,1778194245000,-266.0,0.00034143,30]
[421833930,1778194245000,-504.0,0.00034119,9]
[421833934,1778194245000,-167.81483075,0.00034132,30]
[421833935,1778194245000,-156.0,0.00034143,30]
[421833938,1778194245000,-150.0,0.0003419,2]
[421833940,1778194245000,-1907.063,0.00034656,39]
[421833939,1778194245000,-176.15,0.00034645,120]
[421833941,1778194245000,-182.352,0.00034656,39]
[421833918,1778194245000,-150.2050717,0.00033827,60]
[421833915,1778194245000,-150.0,0.00033634,2]
[421833942,1778194245000,-1131.38948077,0.00034795,2]
[421833905,1778194245000,-300.0,0.00033507,30]
[421833884,1778194245000,-151.0,0.00032884,7]
[421833885,1778194245000,-151.0,0.00032884,7]
[421833889,1778194245000,-150.0,0.00033062,2]
[421833899,1778194245000,-266.0,0.00033143,30]
[421833900,1778194245000,-5529.0,0.000332,5]
[421833901,1778194245000,-497.45,0.000333,7]
[421833896,1778194245000,-156.0,0.00033143,30]
[421833908,1778194245000,-300.0,0.00033507,30]
[421833893,1778194245000,-240.0,0.00033132,30]
[421833895,1778194245000,-157.0,0.00033132,30]
[421833894,1778194245000,-425.0,0.00033132,30]
[421833891,1778194245000,-504.0,0.00033121,8]
[421833898,1778194245000,-153.0,0.00033143,30]
[421833890,1778194245000,-248.0,0.00033062,2]
[421833897,1778194245000,-160.0,0.00033143,30]
[421833906,1778194245000,-300.0,0.00033507,30]
[421833892,1778194245000,-155.0,0.00033132,30]
[421833909,1778194245000,-336.0,0.00033562,2]
[421833910,1778194245000,-150.0,0.00033617,2]
[421833904,1778194245000,-1208.0,0.00033356,5]
[421833912,1778194245000,-269.0,0.00033617,2]
[421833911,1778194245000,-150.0,0.00033617,2]
[421833902,1778194245000,-180.0,0.00033313,10]
[421833913,1778194245000,-150.0,0.00033634,2]
[421833914,1778194245000,-150.0,0.00033634,2]
[421833903,1778194245000,-1518.0,0.00033356,5]
[421833907,1778194245000,-300.0,0.00033507,30]
[421833990,1778194246000,-1067.41467587,0.00035616,7]
[421833991,1778194246000,-1067.41467587,0.00035616,7]
[421833989,1778194246000,-1067.41467587,0.00035616,7]
[421833979,1778194246000,-1067.41467587,0.00035616,7]
[421833971,1778194246000,-1067.41467587,0.00035616,7]
[421833972,1778194246000,-1067.41467587,0.00035616,7]
[421833970,1778194246000,-1067.41467587,0.00035616,7]
[421833967,1778194246000,-1067.41467587,0.00035616,7]
[421833968,1778194246000,-1067.41467587,0.00035616,7]
[421833969,1778194246000,-1067.41467587,0.00035616,7]
[421833980,1778194246000,-1067.41467587,0.00035616,7]
[421833997,1778194246000,-1067.41467587,0.00035616,7]
[421833983,1778194246000,-1067.41467587,0.00035616,7]
[421833984,1778194246000,-1067.41467587,0.00035616,7]
[421833987,1778194246000,-1067.41467587,0.00035616,7]
[421833985,1778194246000,-1067.41467587,0.00035616,7]
[421833982,1778194246000,-1067.41467587,0.00035616,7]
[421833981,1778194246000,-1067.41467587,0.00035616,7]
[421833988,1778194246000,-1067.41467587,0.00035616,7]
[421833986,1778194246000,-1067.41467587,0.00035616,7]
[421833992,1778194246000,-1067.41467587,0.00035616,7]
[421833996,1778194246000,-1067.41467587,0.00035616,7]
[421833995,1778194246000,-1067.41467587,0.00035616,7]
[421833964,1778194246000,-1067.41467587,0.00035616,7]
[421833978,1778194246000,-1067.41467587,0.00035616,7]
[421833966,1778194246000,-1067.41467587,0.00035616,7]
[421833957,1778194246000,-266.0,0.00035143,30]
[421833977,1778194246000,-1067.41467587,0.00035616,7]
[421833994,1778194246000,-1067.41467587,0.00035616,7]
[421833943,1778194246000,-150.0,0.00034834,2]
[421833946,1778194246000,-2816.15708596,0.00034988,2]
[421833950,1778194246000,-270.76,0.00035,30]
[421833949,1778194246000,-1754.91,0.00035,14]
[421833945,1778194246000,-2829.81285236,0.00034988,2]
[421833944,1778194246000,-665.32180989,0.00034988,2]
[421833947,1778194246000,-11889.06004923,0.00034988,2]
[421833948,1778194246000,-275.53355871,0.00035,120]
[421833952,1778194246000,-504.0,0.00035116,10]
[421833963,1778194246000,-1067.41467587,0.00035616,7]
[421833962,1778194246000,-1067.41467587,0.00035616,7]
[421833951,1778194246000,-207.9261601,0.00035,30]
[421833954,1778194246000,-240.0,0.00035132,30]
[421833955,1778194246000,-425.0,0.00035132,30]
[421833953,1778194246000,-157.0,0.00035132,30]
[421833956,1778194246000,-156.0,0.00035143,30]
[421833958,1778194246000,-1500.0,0.000352,7]
[421833960,1778194246000,-1067.41467587,0.00035616,7]
[421833961,1778194246000,-1067.41467587,0.00035616,7]
[421833959,1778194246000,-185.66249107,0.00035616,5]